bitfinex-derivatives/quotes_BNBF0:USTF0_20241225
["timestamp","ask_amount","ask_price","bid_price","bid_amount"]
[1735103364510,0.28404652,704.11,702.7,1.06456527]
[1735103365605,0.26136581,704.1,702.7,1.06456527]
[1735103365811,0.28404652,704.11,702.7,1.06456527]
[1735103366912,0.28404652,704.11,702.49,1.06456527]
[1735103367806,0.28404652,704.11,702.44,1.06456527]
[1735103368605,0.26140971,704.1,702.44,1.06456527]
[1735103368813,0.26140971,704.1,702.45,1.06456527]
[1735103369706,0.26140936,704.09,702.45,1.06456527]
[1735103369907,0.28406266,704.07,702.45,1.06456527]
[1735103370105,0.28406266,704.07,702.43,1.06456527]
[1735103371013,0.28406266,704.07,702.42,1.06456527]
[1735103372110,0.28406266,704.07,702.4,1.06456527]
[1735103373108,0.28406266,704.07,702.41,1.06456527]
[1735103374811,0.28406266,704.07,702.43,1.06456527]
[1735103375708,0.26141139,704.06,702.43,1.06456527]
[1735103376910,0.26141139,704.06,702.57,1.06456527]
[1735103377915,0.26141139,704.06,702.58,1.06456527]
[1735103378108,0.28407476,704.04,702.58,1.06456527]
[1735103378312,0.26141008,704.03,702.58,1.06456527]
[1735103378610,0.26141516,704.02,702.6,1.06456527]
[1735103378811,0.26141516,704.01,702.6,1.06456527]
[1735103379015,0.26141516,704.0,702.6,1.06456527]
[1735103379316,0.26141516,703.99,702.6,1.06456527]
[1735103379516,0.26141516,703.98,702.6,1.06456527]
[1735103379709,0.28407476,704.04,702.6,1.06456527]
[1735103379710,0.26141516,703.97,702.6,1.06456527]
[1735103380014,0.26141516,703.96,702.59,1.06456527]
[1735103380214,0.26141516,703.95,702.59,1.06456527]
[1735103380412,0.26141516,703.94,702.59,1.06456527]
[1735103380611,0.26141516,703.93,702.59,1.06456527]
[1735103380819,0.26142442,703.92,702.59,1.06456527]
[1735103381014,0.26142442,703.91,702.59,1.06456527]
[1735103381320,0.26142442,703.91,702.03,1.27747833]
[1735103381321,0.26142442,703.9,702.64,1.06456527]
[1735103381611,0.26142442,703.89,702.64,1.06456527]
[1735103381817,0.26148298,703.88,702.64,1.06456527]
[1735103382017,0.26148298,703.87,702.63,1.06456527]
[1735103382311,0.28407476,704.04,702.63,1.06456527]
[1735103382312,0.26148298,703.86,702.63,1.06456527]
[1735103382516,0.26148298,703.85,702.63,1.06456527]
[1735103382717,0.26148298,703.84,702.63,1.06456527]
[1735103382915,0.26148298,704.03,702.63,1.06456527]
[1735103383116,0.26148298,704.02,702.63,1.06456527]
[1735103383415,0.28407476,704.04,702.18,1.06456527]
[1735103383416,0.26148298,704.01,702.18,1.06456527]
[1735103383615,0.26152091,704.0,702.18,1.06456527]
[1735103383916,0.26152091,703.99,702.18,1.06456527]
[1735103384112,0.26152091,703.98,702.13,1.06456527]
[1735103384313,0.26152091,703.97,702.13,1.06456527]
[1735103384514,0.26152091,703.96,702.13,1.06456527]
[1735103384813,0.26152091,703.95,702.13,1.06456527]
[1735103385014,0.26152091,703.94,702.13,1.06456527]
[1735103385209,0.28407476,704.04,702.06,1.06456527]
[1735103385210,0.26152091,703.93,702.06,1.06456527]
[1735103385415,0.26152091,703.92,702.06,1.06456527]
[1735103385618,0.26152091,703.91,702.06,1.06456527]
[1735103385815,0.26152091,703.9,702.06,1.06456527]
[1735103386012,0.26152091,703.89,702.06,1.06456527]
[1735103386318,0.26152904,703.88,702.06,1.06456527]
[1735103386619,0.26152904,703.87,702.02,1.06456527]
[1735103386917,0.26152904,703.86,702.02,1.06456527]
[1735103387118,0.26152904,703.85,702.02,1.06456527]
[1735103387417,0.26152904,703.84,702.02,1.06456527]
[1735103387620,0.26152904,703.83,702.0,1.06456527]
[1735103387820,0.26152904,703.82,702.0,1.06456527]
[1735103388119,0.26152904,703.81,702.0,1.06456527]
[1735103388314,0.26152904,703.8,702.0,1.06456527]
[1735103388514,0.28407476,704.04,701.97,1.06456527]
[1735103388515,0.26152904,703.79,701.97,1.06456527]
[1735103388719,0.26152904,703.78,701.97,1.06456527]
[1735103388920,0.26152904,703.77,701.97,1.06456527]
[1735103389118,0.26152904,704.03,701.97,1.06456527]
[1735103389319,0.26152904,704.02,701.97,1.06456527]
[1735103389521,0.28407476,704.04,701.95,1.06456527]
[1735103389522,0.26152904,704.01,701.95,1.06456527]
[1735103389822,0.28412723,703.91,701.95,1.06456527]
[1735103390121,0.26154589,703.9,701.95,1.06456527]
[1735103390322,0.26154589,703.9,701.4,0.28514399]
[1735103390323,0.28413934,703.88,701.9,1.06456527]
[1735103390621,0.26154589,703.87,701.9,1.06456527]
[1735103390820,0.26154589,703.87,701.9,1.34950614]
[1735103391022,0.28415145,703.85,701.9,1.34950614]
[1735103391222,0.26154589,703.84,701.9,1.34950614]
[1735103392020,0.26150168,703.83,701.9,1.34950614]
[1735103392221,0.28415145,703.85,701.9,1.34950614]
[1735103392222,0.26150168,703.82,701.9,1.34950614]
[1735103392521,0.28415145,703.85,701.9,1.34950614]
[1735103392522,0.26150168,703.81,702.06,1.06456527]
[1735103392722,0.26150168,703.8,702.06,1.06456527]
[1735103392922,0.26150168,703.79,702.06,1.06456527]
[1735103393119,0.26150168,703.78,702.06,1.06456527]
[1735103393319,0.26150168,703.77,702.06,1.06456527]
[1735103393522,0.28419182,703.75,702.09,1.06456527]
[1735103393723,0.26150168,703.74,702.09,1.06456527]
[1735103394523,0.26150168,703.74,701.9,0.28494087]
[1735103394524,0.28420394,703.72,702.21,1.06456527]
[1735103394729,0.26151933,703.71,702.21,1.06456527]
[1735103395827,0.26151933,703.71,702.22,1.06456527]
[1735103395828,0.28421606,703.69,702.22,1.06456527]
[1735103396026,0.26151933,703.68,702.22,1.06456527]
[1735103396621,0.28422817,703.66,702.22,1.06456527]
[1735103396823,0.26151933,703.65,702.22,1.06456527]
[1735103397028,0.26151933,703.65,701.9,0.28494087]
[1735103397029,0.26151933,703.65,702.25,1.06456527]
[1735103397428,0.26147737,703.64,702.25,1.06456527]
[1735103397624,0.26147737,703.65,702.25,1.06456527]
[1735103397822,0.26147737,703.64,702.25,1.06456527]
[1735103398026,0.28422817,703.66,702.37,1.06456527]
[1735103398822,0.28422817,703.66,701.9,0.28494087]
[1735103398823,0.28422817,703.66,702.36,1.06456527]
[1735103400034,0.28422817,703.66,702.38,1.06456527]
[1735103400825,0.28422817,703.66,702.4,1.06456527]
[1735103402030,0.28422817,703.66,702.38,1.06456527]
[1735103404036,0.28422817,703.66,702.39,1.06456527]
[1735103405133,0.28422817,703.66,702.4,1.06456527]
[1735103406132,0.28422817,703.66,702.41,1.06456527]
[1735103406937,0.28422817,703.66,702.42,1.06456527]
[1735103408238,0.28422817,703.66,701.9,0.28494087]
[1735103408239,0.28422817,703.66,702.43,1.06456527]
[1735103409136,0.28422817,703.66,702.44,1.06456527]
[1735103410235,0.28422817,703.66,702.47,1.06456527]
[1735103411336,0.28422817,703.66,702.48,1.06456527]
[1735103412544,0.28422817,703.66,702.55,1.06456527]
[1735103413741,0.28422817,703.66,702.61,1.06456527]
[1735103415041,0.28422817,703.66,702.63,1.06456527]
[1735103416138,0.28422817,703.66,702.64,1.06456527]
[1735103417346,0.28422817,703.66,701.95,2.17348743]
[1735103417347,0.28422817,703.66,702.66,1.06456527]
[1735103418253,0.28422817,703.66,702.63,1.06456527]
[1735103419151,0.28422817,703.66,702.08,1.27747833]
[1735103419152,0.28422817,703.66,702.64,1.06456527]
[1735103420144,0.28422817,703.66,702.63,1.06456527]
[1735103423351,0.28422817,703.66,702.62,1.06456527]
[1735103424651,0.28422817,703.66,702.66,1.06456527]
[1735103425852,0.28422817,703.66,702.69,1.06456527]
[1735103426853,0.28422817,703.66,702.75,1.06456527]
[1735103427648,0.28422817,703.66,702.73,1.06456527]
[1735103431956,0.28422817,703.66,702.75,1.06456527]
[1735103432852,0.28422817,703.66,702.73,1.06456527]
[1735103434958,0.28422817,703.66,702.47,1.06456527]
[1735103434959,0.28422817,703.66,702.74,1.06456527]
[1735103436052,0.28422817,703.66,702.75,1.06456527]
[1735103437364,0.28422817,703.66,702.83,1.06456527]
[1735103438163,0.28422817,703.66,702.84,1.06456527]
[1735103439460,0.28422817,703.66,702.85,1.06456527]
[1735103440457,0.28422817,703.66,702.83,1.06456527]
[1735103441761,0.28422817,703.66,702.34,1.27747833]
[1735103441762,0.28422817,703.66,702.82,1.06456527]
[1735103443465,0.28422817,703.66,702.86,1.06456527]
[1735103445069,0.28422817,703.66,702.89,1.06456527]
[1735103446467,0.28422817,703.66,702.82,1.06456527]
[1735103447668,0.28422817,703.66,702.89,1.06456527]
[1735103448667,0.28422817,703.66,702.87,1.06456527]
[1735103449568,0.28422817,703.66,702.86,1.06456527]
[1735103450467,0.28422817,703.66,702.84,1.06456527]
[1735103451568,0.28422817,703.66,702.87,1.06456527]
[1735103452572,0.28422817,703.66,702.86,1.06456527]
[1735103453365,0.28422817,703.66,702.83,1.06456527]
[1735103455974,0.28422817,703.66,702.91,1.06456527]
[1735103457076,0.28422817,703.66,702.72,1.06456527]
[1735103458371,0.28422817,703.66,702.74,1.06456527]
[1735103459076,0.28422817,703.66,702.78,1.06456527]
[1735103460375,0.28422817,703.66,702.77,1.06456527]
[1735103462176,0.28422817,703.66,702.78,1.06456527]
[1735103464274,0.28422817,703.66,701.91,0.78164248]
[1735103464275,0.28422817,703.66,702.82,1.06456527]
[1735103465179,0.28422817,703.66,702.67,1.06456527]
[1735103465979,0.28422817,703.66,702.56,1.06456527]
[1735103467280,0.28422817,703.66,702.53,1.06456527]
[1735103469776,0.28422817,703.66,702.61,1.06456527]
[1735103470676,0.28422817,703.66,702.62,1.06456527]
[1735103472685,0.28422817,703.66,702.59,1.06456527]
[1735103474587,0.28422817,703.66,702.61,1.06456527]
[1735103475582,0.28422817,703.66,702.63,1.06456527]
[1735103476587,0.28422817,703.66,702.68,1.06456527]
[1735103477689,0.28422817,703.66,702.5,1.06456527]
[1735103478789,0.28422817,703.66,702.4,1.06456527]
[1735103479885,0.28422817,703.66,701.91,0.78164248]
[1735103479886,0.28422817,703.66,702.32,1.06456527]
[1735103480687,0.26150824,703.65,702.27,1.06456527]
[1735103481689,0.26150824,703.65,702.24,1.06456527]
[1735103482085,0.28424029,703.63,702.24,1.06456527]
[1735103482286,0.26150824,703.62,702.24,1.06456527]
[1735103482690,0.28425241,703.6,702.24,1.06456527]
[1735103482990,0.26150824,703.59,702.2,1.06456527]
[1735103483380,0.28426049,703.58,702.2,1.06456527]
[1735103483585,0.26150824,703.57,702.19,1.06456527]
[1735103483784,0.28426857,703.56,702.19,1.06456527]
[1735103483984,0.26150824,703.55,702.19,1.06456527]
[1735103484389,0.28427665,703.54,702.19,1.06456527]
[1735103484983,0.28427665,703.54,701.62,1.27747833]
[1735103484984,0.28427665,703.54,702.17,1.06456527]
[1735103486090,0.26151975,703.53,702.16,1.06456527]
[1735103486284,0.28428473,703.52,702.16,1.06456527]
[1735103487691,0.28428473,703.52,701.46,2.17348743]
[1735103487692,0.28428473,703.52,702.09,1.06456527]
[1735103488594,0.28428473,703.52,702.07,1.06456527]
[1735103492498,0.28428473,703.52,702.03,1.06456527]
[1735103493499,0.28428473,703.52,702.06,1.06456527]
[1735103494296,0.28428473,703.52,702.11,1.06456527]
[1735103495300,0.28428473,703.52,702.14,1.06456527]
[1735103496502,0.28428473,703.52,702.11,1.06456527]
[1735103497294,0.28428473,703.52,702.26,1.06456527]
[1735103498498,0.28428473,703.52,702.16,1.06456527]
[1735103499501,0.28428473,703.52,702.18,1.06456527]
[1735103500698,0.28428473,703.52,701.52,1.27747833]
[1735103500699,0.28428473,703.52,702.19,1.06456527]
[1735103501701,0.28428473,703.52,702.23,1.06456527]
[1735103503301,0.28428473,703.52,702.24,1.06456527]
[1735103504302,0.28428473,703.52,702.26,1.06456527]
[1735103505003,0.28428473,703.52,702.28,1.06456527]
[1735103506103,0.28428473,703.52,702.31,1.06456527]
[1735103508403,0.28428473,703.52,702.27,1.06456527]
[1735103509100,0.28428473,703.52,702.31,1.06456527]
[1735103510107,0.28428473,703.52,702.29,1.06456527]
[1735103510906,0.28428473,703.52,702.32,1.06456527]
[1735103512603,0.28428473,703.52,702.29,1.06456527]
[1735103514910,0.28428473,703.52,702.34,1.06456527]
[1735103515703,0.28428473,703.52,702.31,1.06456527]
[1735103519607,0.28428473,703.52,702.3,1.06456527]
[1735103522216,0.28428473,703.52,702.32,1.06456527]
[1735103525111,0.28428473,703.52,702.31,1.06456527]
[1735103526717,0.28428473,703.52,702.32,1.06456527]
[1735103527721,0.28428473,703.52,702.33,1.06456527]
[1735103528821,0.28428473,703.52,702.4,1.06456527]
[1735103529818,0.28428473,703.52,702.29,1.06456527]
[1735103531123,0.28428473,703.52,701.91,0.78345486]
[1735103531124,0.28428473,703.52,702.31,1.06456527]
[1735103533325,0.28428473,703.52,701.91,0.78345486]
[1735103533326,0.28428473,703.52,702.34,1.06456527]
[1735103534926,0.28428473,703.52,702.33,1.06456527]
[1735103536026,0.28428473,703.52,702.39,1.06456527]
[1735103536827,0.28428473,703.52,702.4,1.06456527]
[1735103537822,0.28428473,703.52,702.39,1.06456527]
[1735103540427,0.28428473,703.52,702.35,1.06456527]
[1735103541625,0.28428473,703.52,701.92,0.28493275]
[1735103541626,0.28428473,703.52,702.38,1.06456527]
[1735103543029,0.28428473,703.52,701.93,1.84802013]
[1735103543030,0.28428473,703.52,702.41,1.06456527]
[1735103544029,0.28428473,703.52,702.38,1.06456527]
[1735103545126,0.28428473,703.52,701.94,0.28492463]
[1735103545127,0.28428473,703.52,702.39,1.06456527]
[1735103546931,0.28428473,703.52,702.4,1.06456527]
[1735103549431,0.28428473,703.52,702.46,1.06456527]
[1735103550232,0.28428473,703.52,702.37,1.06456527]
[1735103551329,0.28428473,703.52,702.05,1.06456527]
[1735103551330,0.28428473,703.52,702.38,1.06456527]
[1735103553532,0.28428473,703.52,702.43,1.06456527]
[1735103554835,0.28428473,703.52,702.44,1.06456527]
[1735103555730,0.28428473,703.52,702.46,1.06456527]
[1735103556734,0.28428473,703.52,702.43,1.06456527]
[1735103558937,0.26154147,703.51,702.43,1.06456527]
[1735103559132,0.26154147,703.51,702.44,1.06456527]
[1735103559133,0.28429282,703.5,702.44,1.06456527]
[1735103560141,0.28429282,703.5,702.56,1.06456527]
[1735103561240,0.28429282,703.5,702.4,1.06456527]
[1735103561942,0.28429282,703.5,702.39,1.06456527]
[1735103563139,0.28429282,703.5,702.37,1.06456527]
[1735103564145,0.28429282,703.5,702.34,1.06456527]
[1735103564843,0.28429282,703.5,702.38,1.06456527]
[1735103565645,0.28429282,703.5,702.37,1.06456527]
[1735103566843,0.28429282,703.5,702.39,1.06456527]
[1735103567747,0.28429282,703.5,702.38,1.06456527]
[1735103568942,0.28429282,703.5,702.39,1.06456527]
[1735103569249,0.2615583,703.49,702.39,1.06456527]
[1735103569546,0.2843009,703.48,702.39,1.06456527]
[1735103570144,0.2843009,703.48,702.45,1.06456527]
[1735103571244,0.2843009,703.48,702.46,1.06456527]
[1735103571852,0.26155892,703.47,702.46,1.06456527]
[1735103572051,0.28430898,703.46,702.46,1.06456527]
[1735103572254,0.26155892,703.45,702.45,1.06456527]
[1735103572547,0.28431707,703.44,702.45,1.06456527]
[1735103573351,0.28431707,703.44,702.43,1.06456527]
[1735103574355,0.28431707,703.44,702.42,1.06456527]
[1735103575354,0.28431707,703.44,701.96,0.78528488]
[1735103575355,0.28431707,703.44,702.41,1.06456527]
[1735103576255,0.28431707,703.44,702.4,1.06456527]
[1735103576753,0.26156772,703.43,702.4,1.06456527]
[1735103577055,0.28432515,703.42,702.41,1.06456527]
[1735103578054,0.28432515,703.42,702.43,1.06456527]
[1735103579255,0.26156577,703.41,702.43,1.06456527]
[1735103579555,0.28433323,703.4,702.43,1.06456527]
[1735103579756,0.26156577,703.39,702.43,1.06456527]
[1735103579955,0.28434132,703.38,702.43,1.06456527]
[1735103580148,0.26156577,703.37,702.43,1.06456527]
[1735103580353,0.2843494,703.36,702.49,1.06456527]
[1735103580550,0.26156577,703.35,702.49,1.06456527]
[1735103580754,0.28435749,703.34,702.49,1.06456527]
[1735103582551,0.26156541,703.33,702.49,1.06456527]
[1735103582756,0.28436558,703.32,702.49,1.06456527]
[1735103583552,0.2616195,703.31,702.49,1.06456527]
[1735103583955,0.2616195,703.31,702.35,1.06456527]
[1735103584652,0.28436558,703.32,702.35,1.06456527]
[1735103585058,0.28436558,703.32,702.01,1.06456527]
[1735103585059,0.28436558,703.32,702.24,1.06456527]
[1735103585653,0.28436558,703.32,702.28,1.06456527]
[1735103586756,0.28436558,703.32,702.26,1.06456527]
[1735103587557,0.2616,703.31,702.29,1.06456527]
[1735103587757,0.28437366,703.3,702.29,1.06456527]
[1735103587957,0.26160205,703.29,702.29,1.06456527]
[1735103588161,0.28438175,703.28,702.29,1.06456527]
[1735103588360,0.26160205,703.27,702.29,1.06456527]
[1735103588560,0.26160205,703.27,701.96,0.78528488]
[1735103588561,0.28438984,703.26,702.36,1.06456527]
[1735103589763,0.28438984,703.26,702.39,1.06456527]
[1735103590760,0.28438984,703.26,701.96,0.78528488]
[1735103590761,0.28438984,703.26,702.44,1.06456527]
[1735103592465,0.28438984,703.26,702.43,1.06456527]
[1735103594657,0.28438984,703.26,702.23,1.06456527]
[1735103594658,0.28438984,703.26,702.44,1.06456527]
[1735103595664,0.28438984,703.26,702.41,1.06456527]
[1735103596864,0.28438984,703.26,702.32,1.06456527]
[1735103599767,0.28438984,703.26,702.35,1.06456527]
[1735103600861,0.28438984,703.26,702.36,1.06456527]
[1735103602862,0.28438984,703.26,702.1,1.06456527]
[1735103602863,0.28438984,703.26,702.37,1.06456527]
[1735103603668,0.28438984,703.26,701.96,0.78528488]
[1735103603669,0.28438984,703.26,702.43,1.06456527]
[1735103605271,0.28438984,703.26,702.47,1.06456527]
[1735103606365,0.28438984,703.26,702.5,1.06456527]
[1735103607371,0.28438984,703.26,702.48,1.06456527]
[1735103608172,0.28438984,703.26,702.22,1.06456527]
[1735103608173,0.28438984,703.26,702.47,1.06456527]
[1735103609075,0.28438984,703.26,702.0,0.78528488]
[1735103609076,0.28438984,703.26,702.45,1.06456527]
[1735103610175,0.28438984,703.26,702.46,1.06456527]
[1735103611171,0.28438984,703.26,702.02,0.78528488]
[1735103611172,0.28438984,703.26,702.47,1.06456527]
[1735103612083,0.28438984,703.26,702.55,1.06456527]
[1735103612874,0.28438984,703.26,702.5,1.06456527]
[1735103613988,0.28438984,703.26,702.48,1.06456527]
[1735103614986,0.28438984,703.26,702.46,1.06456527]
[1735103616280,0.28438984,703.26,701.9,1.27747833]
[1735103616281,0.28438984,703.26,702.4,1.06456527]
[1735103617281,0.28438984,703.26,702.41,1.06456527]
[1735103618387,0.28438984,703.26,702.4,1.06456527]
[1735103619588,1.27332956,704.69,702.14,1.06456527]
[1735103619589,1.06110796,704.48,702.39,1.06456527]
[1735103619790,0.26145666,704.47,702.39,1.06456527]
[1735103619990,0.28393764,704.38,702.39,1.06456527]
[1735103620190,0.26145666,704.37,702.39,1.06456527]
[1735103620387,0.28393764,704.38,702.39,1.06456527]
[1735103620388,0.26145666,704.36,702.39,1.06456527]
[1735103620588,0.26144891,704.35,702.39,1.06456527]
[1735103620788,0.26144891,704.34,702.39,1.06456527]
[1735103620988,0.26144891,704.33,702.39,1.06456527]
[1735103621187,0.28396586,704.31,702.39,1.06456527]
[1735103621392,0.26144891,704.3,702.39,1.06456527]
[1735103621883,0.26144891,704.3,702.44,1.06456527]
[1735103622585,0.28396586,704.31,702.44,1.06456527]
[1735103622784,0.26143778,704.3,702.44,1.06456527]
[1735103622991,0.28397796,704.28,702.41,1.06456527]
[1735103623190,0.26143778,704.27,702.41,1.06456527]
[1735103623388,0.28399006,704.25,702.41,1.06456527]
[1735103623585,0.26143778,704.24,702.41,1.06456527]
[1735103623793,0.26143778,704.24,702.44,1.06456527]
[1735103624792,0.28400215,704.22,702.44,1.06456527]
[1735103624989,0.26143778,704.21,702.44,1.06456527]
[1735103625194,0.28401425,704.19,702.44,1.06456527]
[1735103625394,0.26143778,704.18,702.44,1.06456527]
[1735103625989,0.28402635,704.16,702.44,1.06456527]
[1735103626189,0.26143778,704.15,702.44,1.06456527]
[1735103626390,0.28403845,704.13,702.44,1.06456527]
[1735103626593,0.26143778,704.12,702.44,1.06456527]
[1735103626794,0.26143778,704.12,702.07,0.78148062]
[1735103626795,0.28405056,704.1,702.46,1.06456527]
[1735103627090,0.26143778,704.09,702.46,1.06456527]
[1735103628091,0.28405056,704.1,702.43,1.06456527]
[1735103628299,0.26143523,704.09,702.43,1.06456527]
[1735103628999,0.28406266,704.07,702.45,1.06456527]
[1735103629194,0.26143688,704.06,702.45,1.06456527]
[1735103629396,0.28407476,704.04,702.45,1.06456527]
[1735103629596,0.26143688,704.03,702.45,1.06456527]
[1735103630196,0.26143688,704.03,702.46,1.06456527]
[1735103631200,0.26143688,704.03,702.08,0.78148062]
[1735103631201,0.28408687,704.01,702.52,1.06456527]
[1735103631399,0.26143688,704.0,702.52,1.06456527]
[1735103631699,0.28409898,703.98,702.52,1.06456527]
[1735103631901,0.26143688,703.97,702.5,1.06456527]
[1735103632099,0.28411108,703.95,702.5,1.06456527]
[1735103632300,0.26143688,703.94,702.5,1.06456527]
[1735103632698,0.28412319,703.92,702.5,1.06456527]
[1735103632892,0.28412319,703.92,702.53,1.06456527]
[1735103632893,0.26143688,703.91,702.53,1.06456527]
[1735103633099,0.2841353,703.89,702.53,1.06456527]
[1735103633292,0.26143688,703.88,702.53,1.06456527]
[1735103633497,0.28414741,703.86,702.53,1.06456527]
[1735103633696,0.26143688,703.85,702.53,1.06456527]
[1735103633894,0.54558991,703.84,702.53,1.06456527]
[1735103634096,0.28415548,703.84,702.53,1.06456527]
[1735103634294,0.28415548,703.84,702.28,1.06456527]
[1735103634295,0.28415548,703.84,702.55,1.06456527]
[1735103634700,0.26143414,703.83,702.55,1.06456527]
[1735103635601,0.26143414,703.83,702.59,1.06456527]
[1735103636502,0.28415548,703.84,702.59,1.06456527]
[1735103636703,0.28415548,703.84,702.19,0.78148062]
[1735103636710,0.26142836,703.83,702.63,1.06456527]
[1735103637601,0.28416356,703.82,702.63,1.06456527]
[1735103637799,0.28416356,703.82,702.66,1.06456527]
[1735103638604,0.28416356,703.82,702.47,1.06456527]
[1735103638605,0.28416356,703.82,702.7,1.06456527]
[1735103639504,0.28416356,703.82,702.69,1.06456527]
[1735103641003,0.26143062,703.81,702.69,1.06456527]
[1735103641201,0.28417163,703.8,702.69,1.06456527]
[1735103641804,0.28417163,703.8,702.74,1.06456527]
[1735103642808,0.28417163,703.8,702.79,1.06456527]
[1735103643810,0.28417163,703.8,702.84,1.06456527]
[1735103644711,0.28417163,703.8,702.81,1.06456527]
[1735103645813,0.28417163,703.8,702.8,1.06456527]
[1735103646712,0.28417163,703.8,702.1,0.78148062]
[1735103646713,0.28417163,703.8,702.81,1.06456527]
[1735103648013,0.28417163,703.8,702.78,1.06456527]
[1735103649113,0.28417163,703.8,702.79,1.06456527]
[1735103650114,0.28417163,703.8,702.78,1.06456527]
[1735103650714,0.28417163,703.8,702.77,1.06456527]
[1735103652819,0.28417163,703.8,702.51,1.06456527]
[1735103652820,0.28417163,703.8,702.84,1.06456527]
[1735103653920,0.28417163,703.8,702.91,1.06456527]
[1735103654715,0.28417163,703.8,702.9,1.06456527]
[1735103657223,0.28417163,703.8,702.81,1.06456527]
[1735103658224,0.28417163,703.8,702.82,1.06456527]
[1735103660119,0.28417163,703.8,702.83,1.06456527]
[1735103662227,0.28417163,703.8,702.82,1.06456527]
[1735103664530,0.28417163,703.8,702.83,1.06456527]
[1735103665628,0.28417163,703.8,702.84,1.06456527]
[1735103667031,0.28417163,703.8,702.49,1.06456527]
[1735103668032,0.28417163,703.8,702.44,1.06456527]
[1735103669331,0.28417163,703.8,702.42,1.06456527]
[1735103670032,0.28417163,703.8,702.3,0.28477858]
[1735103670033,0.28417163,703.8,702.45,1.06456527]
[1735103670832,0.28417163,703.8,702.47,1.06456527]
[1735103672031,0.28417163,703.8,702.46,1.06456527]
[1735103672928,0.28417163,703.8,702.55,1.06456527]
[1735103674033,0.28417163,703.8,702.58,1.06456527]
[1735103676631,0.28417163,703.8,702.64,1.06456527]
[1735103678135,0.26143435,703.79,702.64,1.06456527]
[1735103678528,0.54561526,703.78,702.64,1.06456527]
[1735103678732,0.28418779,703.76,702.64,1.06456527]
[1735103679034,0.26143555,703.75,702.64,1.06456527]
[1735103679236,0.28419586,703.74,702.64,1.06456527]
[1735103679635,0.28419586,703.74,702.3,1.34934385]
[1735103679636,0.28419586,703.74,702.57,1.06456527]
[1735103681738,0.28419586,703.74,702.55,1.06456527]
[1735103682739,0.28419586,703.74,702.58,1.06456527]
[1735103683835,0.28419586,703.74,702.63,1.06456527]
[1735103684839,0.28419586,703.74,702.4,1.06456527]
[1735103684840,0.28419586,703.74,702.64,1.06456527]
[1735103685842,0.28419586,703.74,702.69,1.06456527]
[1735103687637,0.28419586,703.74,702.71,1.06456527]
[1735103688842,0.28419586,703.74,702.67,1.06456527]
[1735103689839,0.28419586,703.74,702.71,1.06456527]
[1735103690842,0.28419586,703.74,702.73,1.06456527]
[1735103691744,0.28419586,703.74,702.74,1.06456527]
[1735103692643,0.28419586,703.74,702.7,1.06456527]
[1735103693646,0.28419586,703.74,702.72,1.06456527]
[1735103696247,0.28419586,703.74,702.74,1.06456527]
[1735103697342,0.28419586,703.74,702.75,1.06456527]
[1735103698145,0.28419586,703.74,702.31,0.78312137]
[1735103698146,0.28419586,703.74,702.8,1.06456527]
[1735103699048,0.28419586,703.74,702.81,1.06456527]
[1735103700044,0.28419586,703.74,702.82,1.06456527]
[1735103701444,0.26141837,703.73,702.84,1.06456527]
[1735103701648,0.54561827,703.73,702.84,1.06456527]
[1735103701849,0.26141837,703.72,702.84,1.06456527]
[1735103702149,0.2841999,703.73,702.84,1.06456527]
[1735103702348,0.2841999,703.73,702.91,1.06456527]
[1735103703450,0.2841999,703.73,702.95,1.06456527]
[1735103704548,0.2841999,703.73,703.0,1.06456527]
[1735103705548,0.2841999,703.73,702.38,2.17348743]
[1735103705549,0.2841999,703.73,702.99,1.06456527]
[1735103706551,0.2841999,703.73,702.97,1.06456527]
[1735103707649,0.2841999,703.73,702.92,1.06456527]
[1735103708852,0.2841999,703.73,702.94,1.06456527]
[1735103709752,0.2841999,703.73,702.92,1.06456527]
[1735103710351,1.06110796,704.52,702.92,1.06456527]
[1735103710546,0.28388928,704.5,702.92,1.06456527]
[1735103710750,0.26129374,704.49,702.92,1.06456527]
[1735103710950,0.26129374,704.49,702.91,1.06456527]
[1735103711954,0.26129374,704.49,702.97,1.06456527]
[1735103713055,0.26125186,704.48,702.88,1.06456527]
[1735103713255,0.26125186,704.47,702.88,1.06456527]
[1735103713456,0.26125186,704.46,702.88,1.06456527]
[1735103713651,0.26125186,704.45,702.88,1.06456527]
[1735103713958,0.26125186,704.44,702.88,1.06456527]
[1735103714157,0.26125186,704.49,702.88,1.06456527]
[1735103714457,0.26125186,704.48,702.88,1.06456527]
[1735103714656,0.26125186,704.47,702.88,1.06456527]
[1735103714958,0.26125186,704.46,702.88,1.06456527]
[1735103715153,0.26125186,704.46,702.48,0.78005417]
[1735103715154,0.26125186,704.45,702.9,1.06456527]
[1735103715357,0.26125186,704.44,702.9,1.06456527]
[1735103715557,0.28388928,704.5,702.9,1.06456527]
[1735103715558,0.26125186,704.43,702.9,1.06456527]
[1735103715759,0.26123916,704.42,702.9,1.06456527]
[1735103716060,0.26123916,704.41,702.9,1.06456527]
[1735103716259,0.26123916,704.4,702.89,1.06456527]
[1735103716456,0.26123916,704.39,702.89,1.06456527]
[1735103716655,0.26123916,704.38,702.89,1.06456527]
[1735103716852,0.28388928,704.5,702.89,1.06456527]
[1735103716853,0.26123916,704.37,702.89,1.06456527]